[Event "13th Senioren-Cup Tegernsee 2025"]
[Site "Rottach-Egern"]
[Date "2025.04.01"]
[Round "4.1"]
[White "Cordts, Ingo"]
[Black "Schneider-Zinner, Harald"]
[Result "1/2-1/2"]
[Annotator "RC"]
[ECO "E08"]
[WhiteElo "2151"]
[BlackElo "2327"]
[PlyCount "102"]
[EventDate "2025.03.25"]
[EventType "swiss"]
[EventCountry "GER"]
[SourceTitle "playchess.com"]
[Source "ChessBase"]
[SourceQuality "1"]
[TimeControl "9000+30"]

1. Nf3 {[%emt 0:20:03]} Nf6 {[%emt 0:20:36]} 2. c4 {[%emt 0:00:12]} e6 {[%emt 0:00:15]} 3. g3 {[%emt 0:00:08]} d5 {[%emt 0:00:50]} 4. d4 {[%emt 0:00:21]} Bb4+ {[%emt 0:00:30]} 5. Bd2 {[%emt 0:00:25]} Be7 {[%emt 0:00:19]} 6. Bg2 {[%emt 0:00:24]} O-O {[%emt 0:00:14]} 7. O-O {[%emt 0:00:40]} c6 {[%emt 0:00:26]} 8. Qc2 {[%emt 0:00:32]} Nbd7 {[%emt 0:00:20]} 9. Bf4 {[%emt 0:01:13]} a5 {[%emt 0:00:24]} 10. b3 {[%emt 0:05:58]} b6 {[%emt 0:03:02]} 11. Ne5 {[%emt 0:04:20]} Bb7 {[%emt 0:14:30]} 12. Rd1 {[%emt 0:08:18]} Rc8 {[%emt 0:01:31]} 13. Nc3 {[%emt 0:00:44]} Nxe5 {[%emt 0:05:06]} 14. Bxe5 {[%emt 0:03:34]} Ba6 {[%emt 0:12:49]} 15. e4 {[%emt 0:21:24]} dxc4 {[%emt 0:04:30]} 16. Qe2 {[%emt 0:01:30]} Bb4 {[%emt 0:10:25]} 17. Na4 {[%emt 0:04:50]} Bb5 {[%emt 0:03:58]} 18. Bxf6 {[%emt 0:04:06]} gxf6 {[%emt 0:15:22]} 19. a3 {[%emt 0:03:04]} Bxa4 {[%emt 0:04:50]} 20. bxa4 {[%emt 0:02:33]} Bc3 {[%emt 0:01:02]} 21. Rac1 {[%emt 0:03:50]} Bxd4 {[%emt 0:00:07]} 22. Rxc4 {[%emt 0:00:41]} c5 {[%emt 0:00:17]} 23. Rd3 {[%emt 0:12:49]} Kh8 {[%emt 0:01:47]} 24. Bf1 {[%emt 0:03:17]} Qe7 {[%emt 0:04:41]} 25. Rb3 {[%emt 0:01:51]} Rc6 {[%emt 0:03:39]} 26. Qh5 {[%emt 0:05:20]} Qd6 {[%emt 0:08:50]} 27. Bd3 {[%emt 0:02:48]} Qe5 {[%emt 0:01:17]} 28. Qf3 {[%emt 0:09:20]} Rd8 {[%emt 0:03:37]} 29. Rc1 {[%emt 0:02:36]} Qg5 {[%emt 0:01:44]} 30. Rc2 {[%emt 0:01:21]} Rcd6 {[%emt 0:03:16]} 31. Kg2 {[%emt 0:04:09]} Be5 {[%emt 0:02:22]} 32. Qe2 {[%emt 0:01:37]} Rd4 {[%emt 0:01:15]} 33. h4 {[%emt 0:02:28]} Qg7 {[%emt 0:04:01]} 34. Bc4 {[%emt 0:04:52]} Bc7 {[%emt 0:01:55]} 35. Qf3 {[%emt 0:05:13]} Qg6 {[%emt 0:02:32]} 36. Re3 {[%emt 0:01:16]} Be5 {[%emt 0:00:35]} 37. Re1 {[%emt 0:02:27]} Qh6 {[%emt 0:00:56]} 38. Re3 {[%emt 0:02:16]} Qf8 {[%emt 0:01:49]} 39. Qh5 {[%emt 0:02:32]} Rd2 {[%emt 0:01:32]} 40. Rxd2 {[%emt 0:01:43]} Rxd2 {[%emt 0:23:19]} 41. Rd3 {[%emt 0:00:56]} Rxd3 {[%emt 0:00:00]} 42. Bxd3 {[%emt 0:00:02]} Bb2 {[%emt 0:00:00]} 43. g4 {[%emt 0:08:51]} Qg7 {[%emt 0:00:00]} 44. f4 {[%emt 0:02:36]} h6 {[%emt 0:00:00]} 45. f5 {[%emt 0:02:13]} exf5 {[%emt 0:00:00]} 46. Qxf5 {[%emt 0:00:07]} Be5 {[%emt 0:00:00]} 47. Qc8+ {[%emt 0:01:04]} Kh7 {[%emt 0:00:00]} 48. Qf5+ {[%emt 0:00:10]} Qg6 {[%emt 0:00:00]} 49. h5 {[%emt 0:00:58]} Qxf5 {[%emt 0:00:00]} 50. exf5 {[%emt 0:00:16]} Kg7 {[%emt 0:00:00]} 51. Kf3 {[%emt 0:00:06]} Kf8 {[%emt 0:00:49]} 1/2-1/2

[Event "13th Senioren-Cup Tegernsee 2025"]
[Site "Rottach-Egern"]
[Date "2025.04.01"]
[Round "4.3"]
[White "Hess, Christian"]
[Black "Mueller, Matthias-Michael"]
[Result "1/2-1/2"]
[Annotator "RC"]
[ECO "E16"]
[WhiteElo "2168"]
[BlackElo "2307"]
[PlyCount "32"]
[EventDate "2025.03.25"]
[EventType "swiss"]
[EventCountry "GER"]
[SourceTitle "playchess.com"]
[Source "ChessBase"]
[SourceQuality "1"]
[TimeControl "9000+30"]

1. c4 {[%emt 0:20:11]} e6 {[%emt 0:20:13]} 2. g3 {[%emt 0:00:39]} d5 {[%emt 0:00:24]} 3. Bg2 {[%emt 0:00:11]} Nf6 {[%emt 0:00:40]} 4. Nf3 {[%emt 0:00:15]} Bd6 {[%emt 0:00:51]} 5. O-O {[%emt 0:03:38]} b6 {[%emt 0:01:54]} 6. Nc3 {[%emt 0:04:44]} Bb7 {[%emt 0:00:36]} 7. d4 {[%emt 0:00:27]} Nbd7 {[%emt 0:00:33]} 8. cxd5 {[%emt 0:19:53]} exd5 {[%emt 0:01:47]} 9. Nb5 {[%emt 0:00:53]} Ne4 {[%emt 0:00:58]} 10. Nxd6+ {[%emt 0:08:15]} Nxd6 {[%emt 0:00:03]} 11. Bf4 {[%emt 0:03:26]} Nf6 {[%emt 0:02:54]} 12. Rc1 {[%emt 0:09:00]} O-O {[%emt 0:05:04]} 13. Ne5 {[%emt 0:07:02]} Re8 {[%emt 0:26:42]} 14. Qc2 {[%emt 0:19:57]} Re7 {[%emt 0:02:46]} 15. Bg5 {[%emt 0:10:55]} Nde8 {[%emt 0:00:37]} 16. Bf4 {[%emt 0:17:57]} h6 {[%emt 0:05:32]} 1/2-1/2

[Event "13th Senioren-Cup Tegernsee 2025"]
[Site "Rottach-Egern"]
[Date "2025.04.01"]
[Round "4.4"]
[White "Pieper, Thomas"]
[Black "Schober, Ralf"]
[Result "1-0"]
[Annotator "RC"]
[ECO "B00"]
[WhiteElo "2178"]
[BlackElo "2077"]
[PlyCount "69"]
[EventDate "2025.03.25"]
[EventType "swiss"]
[EventCountry "GER"]
[SourceTitle "playchess.com"]
[Source "ChessBase"]
[SourceQuality "1"]
[TimeControl "9000+30"]

1. e4 {[%emt 0:20:03]} Nc6 {[%emt 0:20:20]} 2. Nf3 {[%emt 0:00:18]} d6 {[%emt 0:01:54]} 3. d4 {[%emt 0:00:36]} Nf6 {[%emt 0:00:12]} 4. c3 {[%emt 0:02:40]} a6 {[%emt 0:02:42]} 5. h3 {[%emt 0:01:16]} g6 {[%emt 0:03:43]} 6. Be3 {[%emt 0:13:56]} Bg7 {[%emt 0:01:01]} 7. Bd3 {[%emt 0:00:08]} O-O {[%emt 0:00:45]} 8. O-O {[%emt 0:01:21]} e5 {[%emt 0:03:20]} 9. d5 {[%emt 0:19:44]} Ne7 {[%emt 0:00:50]} 10. c4 {[%emt 0:00:26]} Nh5 {[%emt 0:08:20]} 11. Nc3 {[%emt 0:03:47]} Nf4 {[%emt 0:06:47]} 12. Ne1 {[%emt 0:22:00]} Bd7 {[%emt 0:11:40]} 13. c5 {[%emt 0:02:28]} Qc8 {[%emt 0:00:52]} 14. Rc1 {[%emt 0:02:00]} Qb8 {[%emt 0:06:38]} 15. b4 {[%emt 0:05:50]} f5 {[%emt 0:07:07]} 16. Bc4 {[%emt 0:04:13]} Kh8 {[%emt 0:02:33]} 17. f3 {[%emt 0:01:08]} Qe8 {[%emt 0:05:07]} 18. a4 {[%emt 0:03:23]} Bh6 {[%emt 0:08:29]} 19. Kh2 {[%emt 0:06:48]} g5 {[%emt 0:03:28]} 20. b5 {[%emt 0:11:59]} Qh5 {[%emt 0:13:51]} 21. c6 {[%emt 0:08:11]} bxc6 {[%emt 0:02:07]} 22. dxc6 {[%emt 0:00:19]} axb5 {[%emt 0:07:16]} 23. cxd7 {[%emt 0:05:13]} bxc4 {[%emt 0:00:12]} 24. Nb5 {[%emt 0:00:43]} fxe4 {[%emt 0:29:15]} 25. Nxc7 {[%emt 0:02:37]} Qg6 {[%emt 0:05:53]} 26. Nxa8 {[%emt 0:00:54]} Rxa8 {[%emt 0:00:26]} 27. fxe4 {[%emt 0:03:49]} Rd8 {[%emt 0:06:49]} 28. Rxc4 {[%emt 0:04:20]} Rxd7 {[%emt 0:00:09]} 29. Qg4 {[%emt 0:14:50]} Rb7 {[%emt 0:02:00]} 30. a5 {[%emt 0:00:00]} Qf7 {[%emt 0:00:26]} 31. a6 {[%emt 0:00:00]} Rb2 {[%emt 0:00:43]} 32. Rc7 {[%emt 0:00:00]} Qe8 {[%emt 0:00:37]} 33. a7 {[%emt 0:00:00]} Ra2 {[%emt 0:00:17]} 34. Bxf4 {[%emt 0:00:00]} gxf4 {[%emt 0:00:34]} 35. Qe6 {[%emt 0:00:00]} 1-0

[Event "13th Senioren-Cup Tegernsee 2025"]
[Site "Rottach-Egern"]
[Date "2025.04.01"]
[Round "4.5"]
[White "Pollmann, Sascha"]
[Black "Loew, Gerald"]
[Result "1/2-1/2"]
[Annotator "RC"]
[ECO "E04"]
[WhiteElo "2071"]
[BlackElo "2175"]
[PlyCount "25"]
[EventDate "2025.03.25"]
[EventType "swiss"]
[EventCountry "GER"]
[SourceTitle "playchess.com"]
[Source "ChessBase"]
[SourceQuality "1"]
[TimeControl "9000+30"]

1. Nf3 {[%emt 0:20:05]} d5 {[%emt 0:20:11]} 2. g3 {[%emt 0:00:35]} c5 {[%emt 0:00:28]} 3. Bg2 {[%emt 0:00:22]} Nc6 {[%emt 0:00:51]} 4. d4 {[%emt 0:00:30]} Nf6 {[%emt 0:00:51]} 5. O-O {[%emt 0:00:18]} e6 {[%emt 0:01:04]} 6. c4 {[%emt 0:00:31]} dxc4 {[%emt 0:01:07]} 7. dxc5 {[%emt 0:00:35]} Qxd1 {[%emt 0:00:36]} 8. Rxd1 {[%emt 0:00:08]} Bxc5 {[%emt 0:00:11]} 9. Nbd2 {[%emt 0:01:06]} c3 {[%emt 0:00:49]} 10. bxc3 {[%emt 0:00:07]} O-O {[%emt 0:00:36]} 11. Nb3 {[%emt 0:00:29]} Be7 {[%emt 0:00:28]} 12. c4 {[%emt 0:00:42]} Bd7 {[%emt 0:01:27]} 13. Bb2 {[%emt 0:00:31]} 1/2-1/2

[Event "13th Senioren-Cup Tegernsee 2025"]
[Site "Rottach-Egern"]
[Date "2025.04.01"]
[Round "4.6"]
[White "Belkahia, Tijani"]
[Black "Lindam, Ingo"]
[Result "0-1"]
[Annotator "RC"]
[ECO "B49"]
[WhiteElo "2068"]
[BlackElo "2151"]
[PlyCount "116"]
[EventDate "2025.03.25"]
[EventType "swiss"]
[EventCountry "GER"]
[SourceTitle "playchess.com"]
[Source "ChessBase"]
[SourceQuality "1"]
[TimeControl "9000+30"]

1. e4 {[%emt 0:20:05]} c5 {[%emt 0:20:10]} 2. Nf3 {[%emt 0:00:16]} e6 {[%emt 0:00:18]} 3. d4 {[%emt 0:00:17]} cxd4 {[%emt 0:00:02]} 4. Nxd4 {[%emt 0:00:02]} Nc6 {[%emt 0:00:20]} 5. Nc3 {[%emt 0:00:58]} Qc7 {[%emt 0:00:03]} 6. Be3 {[%emt 0:00:39]} a6 {[%emt 2:12:37]} 7. Be2 {[%emt 0:00:20]} Nf6 {[%emt 0:00:00]} 8. O-O {[%emt 0:00:11]} Bb4 {[%emt 0:00:00]} 9. Na4 {[%emt 0:03:47]} Be7 {[%emt 0:00:00]} 10. Nxc6 {[%emt 0:04:41]} bxc6 {[%emt 0:00:00]} 11. Qd4 {[%emt 0:03:43]} Rb8 {[%emt 0:00:00]} 12. c4 {[%emt 0:02:26]} e5 {[%emt 0:00:00]} 13. Qd3 {[%emt 0:01:01]} d6 {[%emt 0:00:00]} 14. h3 {[%emt 0:04:56]} O-O {[%emt 0:00:00]} 15. f4 {[%emt 0:06:19]} c5 {[%emt 0:00:00]} 16. b3 {[%emt 0:02:25]} exf4 {[%emt 0:00:00]} 17. Bxf4 {[%emt 0:00:13]} Re8 {[%emt 0:00:00]} 18. Nc3 {[%emt 0:00:41]} Bb7 {[%emt 0:00:00]} 19. Nd5 {[%emt 0:05:46]} Nxd5 {[%emt 0:00:00]} 20. exd5 {[%emt 0:00:02]} Bf6 {[%emt 0:00:00]} 21. Rae1 {[%emt 0:06:18]} Be5 {[%emt 0:00:00]} 22. Qf3 {[%emt 0:05:48]} Bxf4 {[%emt 0:00:00]} 23. Qxf4 {[%emt 0:00:02]} Re5 {[%emt 0:00:00]} 24. Bd3 {[%emt 0:02:10]} Rbe8 {[%emt 0:00:00]} 25. Rxe5 {[%emt 0:03:07]} Rxe5 {[%emt 0:00:00]} 26. Qh4 {[%emt 0:02:56]} h6 {[%emt 0:00:00]} 27. Re1 {[%emt 0:01:38]} Rxe1+ {[%emt 0:00:00]} 28. Qxe1 {[%emt 0:00:03]} Kf8 {[%emt 0:00:00]} 29. Kf2 {[%emt 0:06:47]} Qd8 {[%emt 0:00:00]} 30. Qe4 {[%emt 0:00:52]} Qf6+ {[%emt 0:00:00]} 31. Qf5 {[%emt 0:11:41]} Ke7 {[%emt 0:00:00]} 32. Ke3 {[%emt 0:30:24]} Qd4+ {[%emt 0:00:00]} 33. Ke2 {[%emt 0:00:11]} Qb2+ {[%emt 0:00:00]} 34. Kf3 {[%emt 0:00:24]} Qf6 {[%emt 0:00:00]} 35. Ke3 {[%emt 0:02:34]} Qh4 {[%emt 0:00:00]} 36. Kd2 {[%emt 0:08:32]} g6 {[%emt 0:00:00]} 37. Qe4+ {[%emt 0:03:34]} Qxe4 {[%emt 0:00:00]} 38. Bxe4 {[%emt 0:00:04]} Kf6 {[%emt 0:00:11]} 39. a3 {[%emt 0:00:26]} Ke5 {[%emt 0:00:17]} 40. Kd3 {[%emt 0:01:05]} a5 {[%emt 0:01:12]} 41. Bf3 {[%emt 0:00:35]} Bc8 {[%emt 0:02:39]} 42. Kc3 {[%emt 0:00:23]} Bd7 {[%emt 0:01:04]} 43. b4 {[%emt 0:01:08]} axb4+ {[%emt 0:00:59]} 44. axb4 {[%emt 0:00:02]} cxb4+ {[%emt 0:00:09]} 45. Kxb4 {[%emt 0:01:43]} Kd4 {[%emt 0:00:22]} 46. Ka5 {[%emt 0:04:01]} Kc5 {[%emt 0:02:41]} 47. Ka6 {[%emt 0:00:24]} Bc8+ {[%emt 0:03:05]} 48. Ka7 {[%emt 0:00:11]} f5 {[%emt 0:00:27]} 49. Be2 {[%emt 0:02:06]} f4 {[%emt 0:00:35]} 50. Kb8 {[%emt 0:01:19]} Bf5 {[%emt 0:01:01]} 51. Kc7 {[%emt 0:00:46]} Be4 {[%emt 0:00:28]} 52. Bf1 {[%emt 0:02:35]} g5 {[%emt 0:02:07]} 53. Kd7 {[%emt 0:01:30]} h5 {[%emt 0:00:19]} 54. Ke6 {[%emt 0:09:03]} g4 {[%emt 0:00:31]} 55. Kf6 {[%emt 0:02:01]} f3 {[%emt 0:02:21]} 56. gxf3 {[%emt 0:01:44]} Bxf3 {[%emt 0:00:27]} 57. h4 {[%emt 0:01:25]} g3 {[%emt 0:00:10]} 58. Kg5 {[%emt 0:00:07]} g2 {[%emt 0:00:37]} 0-1

[Event "13th Senioren-Cup Tegernsee 2025"]
[Site "Rottach-Egern"]
[Date "2025.04.01"]
[Round "4.7"]
[White "Schrems, Hermann"]
[Black "Scheckenbach, Franz"]
[Result "1-0"]
[Annotator "NA RC"]
[ECO "D30"]
[WhiteElo "2114"]
[BlackElo "2045"]
[PlyCount "111"]
[EventDate "2025.03.25"]
[EventType "swiss"]
[EventCountry "GER"]
[SourceTitle "playchess.com"]
[Source "ChessBase"]
[SourceQuality "1"]
[TimeControl "9000+30"]

1. d4 {[%emt 0:20:03]} Nf6 {[%emt 0:20:17]} 2. Nf3 {[%emt 0:00:06]} d5 {[%emt 0:00:25]} 3. g3 {[%emt 0:00:06]} e6 {[%emt 0:00:08]} 4. Bg2 {[%emt 0:00:50]} c5 {[%emt 0:00:14]} 5. O-O {[%emt 0:00:18]} Nc6 {[%emt 0:00:08]} 6. c4 {[%emt 2:12:07]} cxd4 {[%emt 0:03:16]} 7. Nxd4 {[%emt 0:00:30]} Bc5 {[%emt 0:00:30]} 8. Nb3 {[%emt 0:00:30]} Bb6 {[%emt 0:00:30] outshines the older 8...Be7.} 9. cxd5 {[%emt 0:00:00]} exd5 {[%emt 0:04:46]} 10. Bg5 {[%emt 0:00:00] D30: Queen's Gambit Declined: Systems without Nc3.} d4 {[%emt 0:14:00]} 11. N1d2 {[%emt 0:02:30]} h6 {[%emt 0:00:40]} 12. Bxf6 {[%emt 0:00:00]} Qxf6 {[%emt 0:01:10]} 13. Rc1 {[%emt 0:00:00]} (13. Nc4 $14) 13... O-O {[%emt 0:03:21]} 14. Ne4 {[%emt 0:00:00]} Qe7 {[%emt 0:03:39]} 15. Nec5 {[%emt 0:00:00]} Re8 {[%emt 0:05:19]} 16. Re1 {[%emt 0:00:00]} Na5 $146 {[%emt 0:19:24]} ({Predecessor:} 16... h5 17. Nxb7 Bxb7 18. Bxc6 Bxc6 19. Rxc6 h4 20. Qd3 hxg3 21. hxg3 Rad8 22. Rc2 Rd5 {½-½ Kosteniuk,A (2501)-Makaraci,T (2238) Titled Tuesday intern op 05th Dec Late blitz 2023 (2)}) 17. Qxd4 {[%emt 0:00:00]} Nxb3 {[%emt 0:00:25]} 18. axb3 {[%emt 0:00:00]} Rd8 {[%emt 0:06:27]} 19. Qc3 {[%emt 0:00:00]} Bxc5 {[%emt 0:02:23]} 20. Qxc5 {[%emt 0:00:00]} Qxc5 {[%emt 0:00:04]} 21. Rxc5 {[%emt 0:00:00]} Rd2 {[%emt 0:00:10]} 22. Rd5 {[%emt 0:00:00]} Rxd5 {[%emt 0:02:03]} 23. Bxd5 {[%emt 0:00:00]} Be6 {[%emt 0:00:52]} 24. Bxe6 {[%emt 0:00:00]} fxe6 {[%emt 0:00:04]} 25. Rc1 {[%emt 0:00:00]} Rd8 {[%emt 0:01:12]} 26. Rc2 {[%emt 0:00:00]} Rd6 {[%emt 0:00:35]} 27. Kg2 {[%emt 0:00:00]} Kf8 {[%emt 0:00:56]} 28. Rc8+ {[%emt 0:00:00]} Ke7 {[%emt 0:00:17]} 29. Rc7+ {[%emt 0:00:00]} Kf6 {[%emt 0:00:41]} 30. Rxb7 {[%emt 0:00:00]} Rd2 {[%emt 0:00:39]} 31. Rxa7 {[%emt 0:10:00]} Rxe2 {[%emt 0:00:32]} 32. Ra2 {[%emt 0:00:30]} Re5 {[%emt 0:00:30]} 33. b4 $16 {[%emt 0:00:00]} Rb5 {[%emt 0:01:32]} 34. Ra4 {[%emt 0:00:00]} e5 {[%emt 0:00:30]} 35. Kf3 {[%emt 0:00:00]} h5 {[%emt 0:00:30]} 36. Ke4 {[%emt 0:00:00]} g6 {[%emt 0:00:30]} 37. h4 {[%emt 0:00:00]} Ke6 {[%emt 0:00:30]} 38. f3 {[%emt 0:00:00]} Rb6 {[%emt 0:00:30]} 39. b3 {[%emt 0:00:00]} Rb5 {[%emt 0:00:30]} 40. Kd3 {[%emt 0:00:00]} Rb8 {[%emt 0:00:30]} 41. Ke3 {[%emt 0:00:00]} Rb5 {[%emt 0:00:30]} 42. f4 {[%emt 0:00:00]} exf4+ {[%emt 0:00:30]} 43. Kxf4 {[%emt 0:00:00]} Rf5+ {[%emt 0:00:30]} 44. Ke4 {[%emt 0:00:00]} Rb5 {[%emt 0:00:30]} 45. Kd4 {[%emt 0:00:00]} Rb8 {[%emt 0:00:30]} 46. Ra6+ {[%emt 0:00:00]} Kf5 {[%emt 0:00:30]} 47. Ra5+ {[%emt 0:00:00]} Kf6 {[%emt 0:00:30]} 48. Kc4 {[%emt 0:00:00]} Re8 {[%emt 0:00:30]} 49. Rg5 {[%emt 0:00:00]} Rc8+ {[%emt 0:00:30]} 50. Kd4 {[%emt 0:00:00]} Rd8+ {[%emt 0:00:30]} 51. Rd5 {[%emt 0:00:00]} Rb8 {[%emt 0:00:30]} 52. b5 {[%emt 0:00:00]} Ke6 {[%emt 0:00:30]} 53. Kc4 {[%emt 0:00:00]} Rc8+ {[%emt 0:00:30]} 54. Rc5 {[%emt 0:00:00]} Rb8 {[%emt 0:00:30]} 55. b4 {[%emt 0:00:00]} Rd8 {[%emt 0:00:30]} 56. b6 {[%emt 0:00:00]} 1-0

[Event "13th Senioren-Cup Tegernsee 2025"]
[Site "Rottach-Egern"]
[Date "2025.04.01"]
[Round "4.8"]
[White "Freundorfer, Josef"]
[Black "Kannenberg, Karl-Heinz"]
[Result "1/2-1/2"]
[Annotator "RC"]
[ECO "B12"]
[WhiteElo "2068"]
[BlackElo "2113"]
[PlyCount "35"]
[EventDate "2025.03.25"]
[EventType "swiss"]
[EventCountry "GER"]
[SourceTitle "playchess.com"]
[Source "ChessBase"]
[SourceQuality "1"]
[TimeControl "9000+30"]

1. e4 {[%emt 0:20:06]} c6 {[%emt 0:20:06]} 2. d4 {[%emt 0:00:10]} d5 {[%emt 0:00:13]} 3. e5 {[%emt 0:00:15]} Bf5 {[%emt 0:00:16]} 4. h4 {[%emt 0:00:16]} Qc7 {[%emt 0:02:46]} 5. Nc3 {[%emt 0:06:41]} h5 {[%emt 0:00:29]} 6. Be2 {[%emt 0:02:09]} g6 {[%emt 0:10:32]} 7. Nf3 {[%emt 0:06:53]} Bg4 {[%emt 0:03:13]} 8. Ng5 {[%emt 0:08:13]} Bxe2 {[%emt 0:01:55]} 9. Nxe2 {[%emt 0:00:43]} e6 {[%emt 0:01:53]} 10. O-O {[%emt 0:00:53]} Nh6 {[%emt 0:01:58]} 11. c4 {[%emt 0:02:49]} Nf5 {[%emt 0:01:40]} 12. g3 {[%emt 0:00:43]} Be7 {[%emt 0:03:01]} 13. b3 {[%emt 0:02:08]} Qd7 {[%emt 0:02:11]} 14. Re1 {[%emt 0:05:45]} Na6 {[%emt 0:02:33]} 15. a3 {[%emt 0:02:09]} b6 {[%emt 0:03:00]} 16. Qd3 {[%emt 0:04:20]} Nc7 {[%emt 0:01:00]} 17. Bf4 {[%emt 0:02:36]} Rd8 {[%emt 0:17:11]} 18. Rec1 {[%emt 0:01:08]} 1/2-1/2

[Event "13th Senioren-Cup Tegernsee 2025"]
[Site "Rottach-Egern"]
[Date "2025.04.01"]
[Round "4.9"]
[White "Polster, Wolfgang"]
[Black "Kirszenberg, Marc"]
[Result "1/2-1/2"]
[Annotator "RC"]
[ECO "B12"]
[WhiteElo "2106"]
[BlackElo "2066"]
[PlyCount "28"]
[EventDate "2025.03.25"]
[EventType "swiss"]
[EventCountry "GER"]
[SourceTitle "playchess.com"]
[Source "ChessBase"]
[SourceQuality "1"]
[TimeControl "9000+30"]

1. e4 {[%emt 0:20:28]} c6 {[%emt 0:20:01]} 2. d4 {[%emt 0:02:11]} d5 {[%emt 0:00:51]} 3. e5 {[%emt 0:00:24]} Bf5 {[%emt 0:00:03]} 4. Nf3 {[%emt 0:00:43]} e6 {[%emt 0:00:04]} 5. Be2 {[%emt 0:00:29]} c5 {[%emt 0:00:11]} 6. O-O {[%emt 0:00:24]} Nc6 {[%emt 0:00:33]} 7. c3 {[%emt 0:00:22]} Bg6 {[%emt 0:00:41]} 8. a3 {[%emt 0:00:28]} cxd4 {[%emt 0:00:18]} 9. cxd4 {[%emt 0:00:13]} Nge7 {[%emt 0:00:33]} 10. Nc3 {[%emt 0:09:51]} Nc8 {[%emt 0:04:34]} 11. Be3 {[%emt 0:09:13]} Nb6 {[%emt 0:10:17]} 12. Nd2 {[%emt 0:04:28]} Be7 {[%emt 0:01:29]} 13. Na4 {[%emt 0:07:18]} O-O {[%emt 0:14:44]} 14. b4 {[%emt 0:03:41]} Nxa4 {[%emt 0:09:18]} 1/2-1/2

[Event "13th Senioren-Cup Tegernsee 2025"]
[Site "Rottach-Egern"]
[Date "2025.04.01"]
[Round "4.10"]
[White "Brettschneider, Karl"]
[Black "Schoetzig, Detlef"]
[Result "0-1"]
[Annotator "RC"]
[ECO "A29"]
[WhiteElo "1986"]
[BlackElo "2106"]
[PlyCount "42"]
[EventDate "2025.03.25"]
[EventType "swiss"]
[EventCountry "GER"]
[SourceTitle "playchess.com"]
[Source "ChessBase"]
[SourceQuality "1"]
[TimeControl "9000+30"]

1. c4 {[%emt 0:20:04]} e5 {[%emt 0:20:55]} 2. Nc3 {[%emt 0:00:09]} Nf6 {[%emt 0:00:38]} 3. g3 {[%emt 0:00:27]} d5 {[%emt 0:01:21]} 4. cxd5 {[%emt 0:00:13]} Nxd5 {[%emt 0:00:06]} 5. Bg2 {[%emt 0:00:11]} Nb6 {[%emt 0:01:04]} 6. Nf3 {[%emt 0:02:58]} Nc6 {[%emt 0:00:13]} 7. O-O {[%emt 0:01:25]} Be7 {[%emt 0:01:06]} 8. d3 {[%emt 0:04:06]} O-O {[%emt 0:00:36]} 9. Nd2 {[%emt 0:02:56]} Be6 {[%emt 0:04:44]} 10. b3 {[%emt 0:01:08]} Qd7 {[%emt 0:02:45]} 11. Nc4 {[%emt 0:02:09]} Rad8 {[%emt 0:18:17]} 12. Bb2 {[%emt 0:05:35]} Bh3 {[%emt 0:01:48]} 13. Nxb6 {[%emt 0:02:35]} axb6 {[%emt 0:00:06]} 14. Nd5 {[%emt 0:01:43]} Bc5 {[%emt 0:04:59]} 15. Bxh3 {[%emt 0:13:15]} Qxh3 {[%emt 0:00:23]} 16. Nxc7 {[%emt 0:06:13]} Rd6 {[%emt 0:00:59]} 17. Bc1 {[%emt 0:03:28]} f5 {[%emt 0:17:24]} 18. e3 {[%emt 0:16:50]} Rh6 {[%emt 0:02:09]} 19. Re1 {[%emt 0:00:19]} f4 {[%emt 0:00:42]} 20. Qf3 {[%emt 0:06:49]} Qxh2+ {[%emt 0:02:25]} 21. Kf1 {[%emt 0:00:15]} fxg3 {[%emt 0:01:05]} 0-1